[Event "Titled Tuesday Blitz August 1 Early 2023"]
[White "Ziatdinov, Raset"]
[Black "Guz, Ari"]
[WhiteFideId "2015323"]
[BlackFideId "2825759"]
[WhiteElo "2298"]
[BlackElo "2588"]
[Result "1-0"]
[Round "1"]
[TimeControl "180+1"]
[Date "2023.08.01"]
[WhiteClock "0:00:44"]
[BlackClock "0:00:01"]
[Board "181"]

1. e4 {[%clk 0:03:00]}  e6 {[%clk 0:02:56]} 2. d4 {[%clk 0:03:00]}  d5 {[%clk 0:02:56]} 3. Nc3 {[%clk 0:02:54]}  Nf6 {[%clk 0:02:56]} 4. e5 {[%clk 0:02:54]}  Nfd7 {[%clk 0:02:55]} 5. f4 {[%clk 0:02:55]}  c5 {[%clk 0:02:52]} 6. Nf3 {[%clk 0:02:55]}  Nc6 {[%clk 0:02:47]} 7. Be3 {[%clk 0:02:56]}  a6 {[%clk 0:02:46]} 8. Qd2 {[%clk 0:02:56]}  Be7 {[%clk 0:02:43]} 9. Be2 {[%clk 0:02:55]}  b5 {[%clk 0:02:35]} 10. a3 {[%clk 0:02:55]}  Qb6 {[%clk 0:02:32]} 11. O-O {[%clk 0:02:53]}  O-O {[%clk 0:02:21]} 12. Rad1 {[%clk 0:02:46]}  Bb7 {[%clk 0:02:02]} 13. Kh1 {[%clk 0:02:38]}  Rac8 {[%clk 0:01:56]} 14. dxc5 {[%clk 0:02:32]}  Bxc5 {[%clk 0:01:53]} 15. Nd4 {[%clk 0:02:29]}  Nxd4 {[%clk 0:01:26]} 16. Bxd4 {[%clk 0:02:30]}  Bxd4 {[%clk 0:01:27]} 17. Qxd4 {[%clk 0:02:31]}  Qxd4 {[%clk 0:01:27]} 18. Rxd4 {[%clk 0:02:32]}  f6 {[%clk 0:01:26]} 19. exf6 {[%clk 0:02:27]}  Rxf6 {[%clk 0:01:24]} 20. Bg4 {[%clk 0:02:26]}  Rcf8 {[%clk 0:01:11]} 21. Re1 {[%clk 0:02:11]}  Nc5 {[%clk 0:01:02]} 22. g3 {[%clk 0:02:08]}  Kf7 {[%clk 0:00:53]} 23. b4 {[%clk 0:01:58]}  Nd7 {[%clk 0:00:45]} 24. Kg1 {[%clk 0:01:45]}  Nb6 {[%clk 0:00:42]} 25. Rd2 {[%clk 0:01:34]}  Nc4 {[%clk 0:00:38]} 26. Rde2 {[%clk 0:01:34]}  Re8 {[%clk 0:00:36]} 27. Bf3 {[%clk 0:01:21]}  Rd8 {[%clk 0:00:27]} 28. a4 {[%clk 0:01:16]}  Bc6 {[%clk 0:00:23]} 29. axb5 {[%clk 0:01:15]}  Bxb5 {[%clk 0:00:23]} 30. Nxb5 {[%clk 0:01:14]}  axb5 {[%clk 0:00:24]} 31. Ra1 {[%clk 0:01:11]}  e5 {[%clk 0:00:22]} 32. Ra7+ {[%clk 0:01:06]}  Kg8 {[%clk 0:00:22]} 33. Ra8 {[%clk 0:00:58]}  Rxa8 {[%clk 0:00:18]} 34. Bxd5+ {[%clk 0:00:58]}  Kf8 {[%clk 0:00:19]} 35. Bxa8 {[%clk 0:00:58]}  exf4 {[%clk 0:00:19]} 36. gxf4 {[%clk 0:00:57]}  Rxf4 {[%clk 0:00:20]} 37. Bc6 {[%clk 0:00:57]}  Nd6 {[%clk 0:00:20]} 38. Rd2 {[%clk 0:00:56]}  Rf7 {[%clk 0:00:19]} 39. Rxd6 {[%clk 0:00:56]}  Rf4 {[%clk 0:00:18]} 40. Rd8+ {[%clk 0:00:56]}  Ke7 {[%clk 0:00:16]} 41. Rd7+ {[%clk 0:00:55]}  Ke6 {[%clk 0:00:16]} 42. Rxg7 {[%clk 0:00:55]}  Rxb4 {[%clk 0:00:15]} 43. Rxh7 {[%clk 0:00:55]}  Kf6 {[%clk 0:00:16]} 44. Rh3 {[%clk 0:00:52]}  Rb2 {[%clk 0:00:15]} 45. Be4 {[%clk 0:00:50]}  Ke5 {[%clk 0:00:13]} 46. Bh7 {[%clk 0:00:45]}  b4 {[%clk 0:00:13]} 47. Rb3 {[%clk 0:00:45]}  Ra2 {[%clk 0:00:05]} 48. Rxb4 {[%clk 0:00:45]}  Kd5 {[%clk 0:00:05]} 49. Bg8+ {[%clk 0:00:44]}  Kc5 {[%clk 0:00:04]} 50. Bxa2 {[%clk 0:00:43]}  Kxb4 {[%clk 0:00:05]} 51. h4 {[%clk 0:00:43]}  Kc3 {[%clk 0:00:01]} 52. h5 {[%clk 0:00:44]} 1-0


[Site "https://www.chess.com"]

[Event "Titled Tuesday Blitz August 1 Early 2023"]
[White "Kupervaser, Erez"]
[Black "Kaminski, Victor"]
[WhiteFideId "2814587"]
[BlackFideId "1131630"]
[WhiteElo "2588"]
[BlackElo "2295"]
[Result "0-1"]
[Round "1"]
[TimeControl "180+1"]
[Date "2023.08.01"]
[WhiteClock "0:00:14"]
[BlackClock "0:00:06"]
[Board "182"]

1. e4 {[%clk 0:03:00]}  e5 {[%clk 0:02:57]} 2. Nf3 {[%clk 0:03:00]}  Nc6 {[%clk 0:02:57]} 3. Bb5 {[%clk 0:03:00]}  a6 {[%clk 0:02:56]} 4. Ba4 {[%clk 0:03:00]}  Nf6 {[%clk 0:02:54]} 5. O-O {[%clk 0:03:00]}  Be7 {[%clk 0:02:53]} 6. Re1 {[%clk 0:03:00]}  b5 {[%clk 0:02:52]} 7. Bb3 {[%clk 0:03:00]}  O-O {[%clk 0:02:53]} 8. a4 {[%clk 0:03:01]}  Bb7 {[%clk 0:02:50]} 9. d3 {[%clk 0:03:00]}  d6 {[%clk 0:02:50]} 10. Bd2 {[%clk 0:02:54]}  Qd7 {[%clk 0:02:46]} 11. Na3 {[%clk 0:02:52]}  Nd4 {[%clk 0:02:23]} 12. Nxd4 {[%clk 0:02:43]}  exd4 {[%clk 0:02:24]} 13. axb5 {[%clk 0:02:22]}  axb5 {[%clk 0:02:23]} 14. c3 {[%clk 0:02:21]}  dxc3 {[%clk 0:02:16]} 15. bxc3 {[%clk 0:02:21]}  c5 {[%clk 0:02:11]} 16. f3 {[%clk 0:02:11]}  Bc6 {[%clk 0:02:01]} 17. Qe2 {[%clk 0:02:02]}  d5 {[%clk 0:01:55]} 18. e5 {[%clk 0:01:57]}  Ne8 {[%clk 0:01:35]} 19. c4 {[%clk 0:01:57]}  Nc7 {[%clk 0:01:20]} 20. Nc2 {[%clk 0:01:41]}  Rxa1 {[%clk 0:01:18]} 21. Rxa1 {[%clk 0:01:41]}  bxc4 {[%clk 0:01:16]} 22. dxc4 {[%clk 0:01:40]}  d4 {[%clk 0:01:15]} 23. Ne1 {[%clk 0:01:34]}  Rb8 {[%clk 0:01:11]} 24. Bc2 {[%clk 0:01:34]}  Ne6 {[%clk 0:01:00]} 25. f4 {[%clk 0:01:28]}  g6 {[%clk 0:00:28]} 26. f5 {[%clk 0:01:20]}  Nf8 {[%clk 0:00:20]} 27. Qf2 {[%clk 0:01:00]}  Rb2 {[%clk 0:00:16]} 28. Bc1 {[%clk 0:00:56]}  Rxc2 {[%clk 0:00:11]} 29. Qxc2 {[%clk 0:00:55]}  gxf5 {[%clk 0:00:10]} 30. Qf2 {[%clk 0:00:43]}  Ng6 {[%clk 0:00:09]} 31. Nd3 {[%clk 0:00:44]}  Be4 {[%clk 0:00:09]} 32. Nf4 {[%clk 0:00:39]}  Bh4 {[%clk 0:00:07]} 33. g3 {[%clk 0:00:32]}  Be7 {[%clk 0:00:07]} 34. Ra6 {[%clk 0:00:22]}  Bb7 {[%clk 0:00:06]} 35. e6 {[%clk 0:00:23]}  Nxf4 {[%clk 0:00:02]} 36. exd7 {[%clk 0:00:18]}  Nh3+ {[%clk 0:00:02]} 37. Kf1 {[%clk 0:00:18]}  Nxf2 {[%clk 0:00:03]} 38. Ra7 {[%clk 0:00:18]}  Bc6 {[%clk 0:00:02]} 39. Kxf2 {[%clk 0:00:17]}  Bd8 {[%clk 0:00:02]} 40. Bf4 {[%clk 0:00:17]}  Kf8 {[%clk 0:00:03]} 41. Bd6+ {[%clk 0:00:17]}  Kg7 {[%clk 0:00:03]} 42. Bxc5 {[%clk 0:00:18]}  Kf6 {[%clk 0:00:03]} 43. Bxd4+ {[%clk 0:00:17]}  Ke6 {[%clk 0:00:04]} 44. Ke3 {[%clk 0:00:14]}  Bxd7 {[%clk 0:00:04]} 45. Ra6+ {[%clk 0:00:14]}  Ke7 {[%clk 0:00:03]} 46. Kf3 {[%clk 0:00:13]}  Ke8 {[%clk 0:00:02]} 47. Ra8 {[%clk 0:00:13]}  Bc6+ {[%clk 0:00:03]} 48. Kf4 {[%clk 0:00:13]}  Bxa8 {[%clk 0:00:04]} 49. Kxf5 {[%clk 0:00:14]}  Bc6 {[%clk 0:00:03]} 50. Be5 {[%clk 0:00:13]}  Bd7+ {[%clk 0:00:03]} 51. Ke4 {[%clk 0:00:13]}  Be6 {[%clk 0:00:04]} 52. Kd4 {[%clk 0:00:14]}  Kd7 {[%clk 0:00:05]} 53. h4 {[%clk 0:00:13]}  Kc6 {[%clk 0:00:06]} 54. Bg7 {[%clk 0:00:13]}  h5 {[%clk 0:00:06]} 55. c5 {[%clk 0:00:12]}  Bc7 {[%clk 0:00:06]} 56. Bf8 {[%clk 0:00:13]}  Bxg3 {[%clk 0:00:06]} 57. Ke3 {[%clk 0:00:13]}  Bxh4 {[%clk 0:00:06]} 58. Kf4 {[%clk 0:00:14]}  Bf2 {[%clk 0:00:06]} 59. Kg5 {[%clk 0:00:15]}  h4 {[%clk 0:00:06]} 60. Bd6 {[%clk 0:00:16]}  h3 {[%clk 0:00:06]} 61. Kf6 {[%clk 0:00:16]}  Bxc5 {[%clk 0:00:06]} 62. Bh2 {[%clk 0:00:16]}  Bd4+ {[%clk 0:00:06]} 63. Ke7 {[%clk 0:00:16]}  Kd5 {[%clk 0:00:06]} 64. Ke8 {[%clk 0:00:15]}  f5 {[%clk 0:00:06]} 65. Ke7 {[%clk 0:00:16]}  Be5 {[%clk 0:00:06]} 66. Bg1 {[%clk 0:00:14]}  h2 {[%clk 0:00:06]} 0-1


[Site "https://www.chess.com"]

[Event "Titled Tuesday Blitz August 1 Early 2023"]
[White "Sourath Biswas"]
[Black "San Thit Lwin"]
[WhiteFideId "35091484"]
[BlackFideId "13001272"]
[WhiteElo "2584"]
[BlackElo "2289"]
[Result "1-0"]
[Round "1"]
[TimeControl "180+1"]
[Date "2023.08.01"]
[WhiteClock "0:01:47"]
[BlackClock "0:01:42"]
[Board "186"]

1. d4 {[%clk 0:03:00]}  Nf6 {[%clk 0:03:00]} 2. Nf3 {[%clk 0:02:52]}  c5 {[%clk 0:03:01]} 3. c3 {[%clk 0:02:52]}  e6 {[%clk 0:03:02]} 4. Bf4 {[%clk 0:02:51]}  d5 {[%clk 0:03:03]} 5. e3 {[%clk 0:02:50]}  Nc6 {[%clk 0:03:04]} 6. Nbd2 {[%clk 0:02:49]}  Bd6 {[%clk 0:03:04]} 7. Bg3 {[%clk 0:02:50]}  O-O {[%clk 0:03:03]} 8. Bd3 {[%clk 0:02:51]}  b6 {[%clk 0:03:01]} 9. e4 {[%clk 0:02:51]}  dxe4 {[%clk 0:03:00]} 10. Nxe4 {[%clk 0:02:50]}  Bxg3 {[%clk 0:02:56]} 11. hxg3 {[%clk 0:02:49]}  h6 {[%clk 0:02:48]} 12. dxc5 {[%clk 0:02:47]}  Bb7 {[%clk 0:02:43]} 13. Nd6 {[%clk 0:02:41]}  Qc7 {[%clk 0:02:34]} 14. Nxb7 {[%clk 0:02:41]}  Qxb7 {[%clk 0:02:34]} 15. cxb6 {[%clk 0:02:41]}  Qxb6 {[%clk 0:02:34]} 16. Qe2 {[%clk 0:02:42]}  Rfd8 {[%clk 0:02:32]} 17. O-O {[%clk 0:02:42]}  Rab8 {[%clk 0:02:32]} 18. Rab1 {[%clk 0:02:42]}  Ne7 {[%clk 0:02:30]} 19. Rfd1 {[%clk 0:02:41]}  Ned5 {[%clk 0:02:29]} 20. Ne5 {[%clk 0:02:32]}  Qc7 {[%clk 0:02:24]} 21. a3 {[%clk 0:02:21]}  Rb6 {[%clk 0:02:19]} 22. c4 {[%clk 0:02:20]}  Ne7 {[%clk 0:02:14]} 23. b4 {[%clk 0:02:20]}  Rbd6 {[%clk 0:02:13]} 24. Bc2 {[%clk 0:02:08]}  Rxd1+ {[%clk 0:02:00]} 25. Rxd1 {[%clk 0:02:09]}  Rxd1+ {[%clk 0:02:01]} 26. Bxd1 {[%clk 0:02:10]}  Nf5 {[%clk 0:02:01]} 27. Nf3 {[%clk 0:02:05]}  Nd6 {[%clk 0:01:57]} 28. c5 {[%clk 0:02:04]}  Nde4 {[%clk 0:01:58]} 29. Bc2 {[%clk 0:02:04]}  Nc3 {[%clk 0:01:50]} 30. Qd3 {[%clk 0:02:04]}  Ncd5 {[%clk 0:01:51]} 31. Qd4 {[%clk 0:01:49]}  a5 {[%clk 0:01:42]} 32. b5 {[%clk 0:01:47]} 1-0


[Site "https://www.chess.com"]

[Event "Titled Tuesday Blitz August 1 Early 2023"]
[White "Hajiyev, Kanan"]
[Black "EdmundPlayer"]
[WhiteFideId "13404148"]
[WhiteElo "2582"]
[BlackElo "2280"]
[Result "1-0"]
[Round "1"]
[TimeControl "180+1"]
[Date "2023.08.01"]
[WhiteClock "0:01:49"]
[BlackClock "0:00:46"]
[Board "188"]

1. d4 {[%clk 0:03:00]}  Nf6 {[%clk 0:02:59]} 2. Nf3 {[%clk 0:03:01]}  g6 {[%clk 0:02:57]} 3. g3 {[%clk 0:03:01]}  Bg7 {[%clk 0:02:55]} 4. Bg2 {[%clk 0:03:02]}  d5 {[%clk 0:02:55]} 5. O-O {[%clk 0:03:03]}  O-O {[%clk 0:02:54]} 6. b3 {[%clk 0:03:04]}  c5 {[%clk 0:02:52]} 7. Bb2 {[%clk 0:03:05]}  cxd4 {[%clk 0:02:45]} 8. Nxd4 {[%clk 0:03:01]}  Nc6 {[%clk 0:02:45]} 9. Nxc6 {[%clk 0:02:57]}  bxc6 {[%clk 0:02:45]} 10. c4 {[%clk 0:02:58]}  Bb7 {[%clk 0:02:24]} 11. Qc2 {[%clk 0:02:56]}  e6 {[%clk 0:02:19]} 12. Rd1 {[%clk 0:02:56]}  Qb6 {[%clk 0:02:14]} 13. e3 {[%clk 0:02:45]}  a5 {[%clk 0:02:07]} 14. Nc3 {[%clk 0:02:38]}  Ba6 {[%clk 0:01:36]} 15. Na4 {[%clk 0:02:34]}  Qc7 {[%clk 0:01:32]} 16. cxd5 {[%clk 0:02:27]}  exd5 {[%clk 0:01:27]} 17. Rac1 {[%clk 0:02:19]}  Qd6 {[%clk 0:00:58]} 18. Qxc6 {[%clk 0:02:12]}  Qxc6 {[%clk 0:00:57]} 19. Rxc6 {[%clk 0:02:13]}  Bb5 {[%clk 0:00:57]} 20. Rxf6 {[%clk 0:02:05]}  Bxa4 {[%clk 0:00:48]} 21. bxa4 {[%clk 0:02:02]}  Rfc8 {[%clk 0:00:47]} 22. Rb6 {[%clk 0:01:57]}  Rc2 {[%clk 0:00:46]} 23. Bxg7 {[%clk 0:01:56]}  Kxg7 {[%clk 0:00:47]} 24. Bxd5 {[%clk 0:01:49]}  Rd8 {[%clk 0:00:46]} 1-0


[Site "https://www.chess.com"]

[Event "Titled Tuesday Blitz August 1 Early 2023"]
[White "Doluhanova, Evgeniya"]
[Black "Thomforde-Toates, Noah"]
[WhiteFideId "14112035"]
[BlackFideId "30951992"]
[WhiteElo "2280"]
[BlackElo "2582"]
[Result "0-1"]
[Round "1"]
[TimeControl "180+1"]
[Date "2023.08.01"]
[WhiteClock "0:00:09"]
[BlackClock "0:00:39"]
[Board "189"]

1. e4 {[%clk 0:02:59]}  d6 {[%clk 0:02:55]} 2. d4 {[%clk 0:02:57]}  Nf6 {[%clk 0:02:43]} 3. Nd2 {[%clk 0:02:53]}  e5 {[%clk 0:02:39]} 4. Ngf3 {[%clk 0:02:52]}  Nbd7 {[%clk 0:02:38]} 5. Bc4 {[%clk 0:02:50]}  Be7 {[%clk 0:02:37]} 6. O-O {[%clk 0:02:49]}  c6 {[%clk 0:02:36]} 7. a4 {[%clk 0:02:48]}  h6 {[%clk 0:02:34]} 8. Bb3 {[%clk 0:02:45]}  Qc7 {[%clk 0:02:34]} 9. c3 {[%clk 0:02:44]}  g5 {[%clk 0:02:32]} 10. Re1 {[%clk 0:02:33]}  Nf8 {[%clk 0:02:27]} 11. Nc4 {[%clk 0:02:22]}  Ng6 {[%clk 0:02:23]} 12. Bxg5 {[%clk 0:02:03]}  hxg5 {[%clk 0:02:22]} 13. Nxg5 {[%clk 0:02:03]}  exd4 {[%clk 0:01:45]} 14. cxd4 {[%clk 0:01:31]}  d5 {[%clk 0:01:43]} 15. Ne5 {[%clk 0:01:21]}  Nxe5 {[%clk 0:01:37]} 16. dxe5 {[%clk 0:01:21]}  Qxe5 {[%clk 0:01:36]} 17. Nf3 {[%clk 0:01:21]}  Qh5 {[%clk 0:01:32]} 18. exd5 {[%clk 0:01:20]}  Nxd5 {[%clk 0:01:32]} 19. Qe2 {[%clk 0:01:02]}  Be6 {[%clk 0:01:30]} 20. Bxd5 {[%clk 0:00:52]}  Qxd5 {[%clk 0:01:25]} 21. Rad1 {[%clk 0:00:52]}  Qh5 {[%clk 0:01:19]} 22. Qe3 {[%clk 0:00:49]}  Rg8 {[%clk 0:01:12]} 23. Nd4 {[%clk 0:00:45]}  Qg5 {[%clk 0:00:54]} 24. Qf3 {[%clk 0:00:27]}  Bd5 {[%clk 0:00:49]} 25. Rxe7+ {[%clk 0:00:25]}  Qxe7 {[%clk 0:00:47]} 26. Qc3 {[%clk 0:00:19]}  Rxg2+ {[%clk 0:00:45]} 27. Kf1 {[%clk 0:00:19]}  Rxh2 {[%clk 0:00:43]} 28. f3 {[%clk 0:00:09]}  Rh1+ {[%clk 0:00:39]} 0-1


[Site "https://www.chess.com"]

[Event "Titled Tuesday Blitz August 1 Early 2023"]
[White "Warchol, Kamil"]
[Black "Bodnaruk, Anastasia"]
[WhiteFideId "21858241"]
[BlackFideId "4181751"]
[WhiteElo "2278"]
[BlackElo "2580"]
[Result "0-1"]
[Round "1"]
[TimeControl "180+1"]
[Date "2023.08.01"]
[WhiteClock "0:00:00"]
[BlackClock "0:00:07"]
[Board "191"]

1. e4 {[%clk 0:03:00]}  c5 {[%clk 0:02:59]} 2. Nf3 {[%clk 0:03:00]}  d6 {[%clk 0:02:59]} 3. d4 {[%clk 0:03:00]}  cxd4 {[%clk 0:02:59]} 4. Nxd4 {[%clk 0:03:01]}  Nf6 {[%clk 0:02:59]} 5. Nc3 {[%clk 0:03:02]}  a6 {[%clk 0:03:00]} 6. Be3 {[%clk 0:02:57]}  e5 {[%clk 0:02:59]} 7. Nf3 {[%clk 0:02:55]}  Qc7 {[%clk 0:02:59]} 8. a4 {[%clk 0:02:52]}  Be7 {[%clk 0:02:53]} 9. Be2 {[%clk 0:02:47]}  Be6 {[%clk 0:02:50]} 10. O-O {[%clk 0:02:46]}  O-O {[%clk 0:02:49]} 11. a5 {[%clk 0:02:45]}  Nbd7 {[%clk 0:02:48]} 12. Ng5 {[%clk 0:02:34]}  Nc5 {[%clk 0:02:38]} 13. b4 {[%clk 0:02:15]}  Nb3 {[%clk 0:02:28]} 14. cxb3 {[%clk 0:01:51]}  Qxc3 {[%clk 0:02:27]} 15. Nxe6 {[%clk 0:01:38]}  fxe6 {[%clk 0:02:27]} 16. Bc4 {[%clk 0:01:32]}  Nxe4 {[%clk 0:02:05]} 17. Bxe6+ {[%clk 0:01:27]}  Kh8 {[%clk 0:02:05]} 18. Bd5 {[%clk 0:01:23]}  Nf6 {[%clk 0:01:49]} 19. Bxb7 {[%clk 0:01:22]}  Rab8 {[%clk 0:01:47]} 20. Bxa6 {[%clk 0:01:22]}  d5 {[%clk 0:01:41]} 21. b5 {[%clk 0:01:18]}  d4 {[%clk 0:01:18]} 22. Bd2 {[%clk 0:01:08]}  Qc5 {[%clk 0:01:17]} 23. Rc1 {[%clk 0:01:00]}  Qd5 {[%clk 0:01:16]} 24. b6 {[%clk 0:00:54]}  e4 {[%clk 0:01:12]} 25. Bc4 {[%clk 0:00:50]}  Qe5 {[%clk 0:01:06]} 26. Qe2 {[%clk 0:00:43]}  d3 {[%clk 0:00:52]} 27. Qd1 {[%clk 0:00:34]}  Bd6 {[%clk 0:00:40]} 28. g3 {[%clk 0:00:34]}  Qf5 {[%clk 0:00:40]} 29. f3 {[%clk 0:00:24]}  Bc5+ {[%clk 0:00:39]} 30. Kg2 {[%clk 0:00:20]}  e3 {[%clk 0:00:39]} 31. Bxe3 {[%clk 0:00:17]}  Bxe3 {[%clk 0:00:39]} 32. Ra1 {[%clk 0:00:16]}  d2 {[%clk 0:00:38]} 33. Qe2 {[%clk 0:00:12]}  Rfe8 {[%clk 0:00:36]} 34. Qd3 {[%clk 0:00:09]}  Qc5 {[%clk 0:00:27]} 35. Ra4 {[%clk 0:00:06]}  Rbd8 {[%clk 0:00:26]} 36. Qc2 {[%clk 0:00:07]}  Bh6 {[%clk 0:00:19]} 37. b4 {[%clk 0:00:06]}  Qd4 {[%clk 0:00:15]} 38. Raa1 {[%clk 0:00:06]}  Rc8 {[%clk 0:00:14]} 39. b7 {[%clk 0:00:03]}  Rxc4 {[%clk 0:00:14]} 40. Qa4 {[%clk 0:00:02]}  Rd8 {[%clk 0:00:10]} 41. a6 {[%clk 0:00:00]}  Rc1 {[%clk 0:00:07]} 0-1


[Site "https://www.chess.com"]

[Event "Titled Tuesday Blitz August 1 Early 2023"]
[White "Martin, Lewis"]
[Black "Gireman, Ja"]
[WhiteFideId "410551"]
[BlackFideId "5043794"]
[WhiteElo "2272"]
[BlackElo "2577"]
[Result "1/2-1/2"]
[Round "1"]
[TimeControl "180+1"]
[Date "2023.08.01"]
[WhiteClock "0:00:35"]
[BlackClock "0:00:10"]
[Board "193"]

1. e4 {[%clk 0:03:00]}  e6 {[%clk 0:03:00]} 2. d4 {[%clk 0:03:00]}  d5 {[%clk 0:03:01]} 3. Nd2 {[%clk 0:03:00]}  Be7 {[%clk 0:02:58]} 4. Ngf3 {[%clk 0:02:56]}  Nf6 {[%clk 0:02:57]} 5. Bd3 {[%clk 0:02:51]}  c5 {[%clk 0:02:56]} 6. exd5 {[%clk 0:02:47]}  exd5 {[%clk 0:02:50]} 7. dxc5 {[%clk 0:02:46]}  O-O {[%clk 0:02:50]} 8. O-O {[%clk 0:02:46]}  Bxc5 {[%clk 0:02:50]} 9. Nb3 {[%clk 0:02:45]}  Be7 {[%clk 0:02:50]} 10. c3 {[%clk 0:02:41]}  Nc6 {[%clk 0:02:49]} 11. Bg5 {[%clk 0:02:41]}  h6 {[%clk 0:02:49]} 12. Bh4 {[%clk 0:02:41]}  Bg4 {[%clk 0:02:45]} 13. Re1 {[%clk 0:02:37]}  Re8 {[%clk 0:02:36]} 14. h3 {[%clk 0:02:34]}  Bh5 {[%clk 0:02:36]} 15. g4 {[%clk 0:02:32]}  Nxg4 {[%clk 0:02:36]} 16. Bxe7 {[%clk 0:02:29]}  Rxe7 {[%clk 0:02:35]} 17. Rxe7 {[%clk 0:02:22]}  Qxe7 {[%clk 0:02:20]} 18. hxg4 {[%clk 0:02:22]}  Bxg4 {[%clk 0:02:21]} 19. Nbd2 {[%clk 0:02:20]}  Re8 {[%clk 0:02:09]} 20. Qa4 {[%clk 0:02:14]}  Bxf3 {[%clk 0:02:02]} 21. Nxf3 {[%clk 0:02:13]}  Qf6 {[%clk 0:02:03]} 22. Qg4 {[%clk 0:02:07]}  g6 {[%clk 0:01:53]} 23. Re1 {[%clk 0:02:03]}  Rxe1+ {[%clk 0:01:48]} 24. Nxe1 {[%clk 0:02:03]}  d4 {[%clk 0:01:47]} 25. Qc8+ {[%clk 0:01:52]}  Kg7 {[%clk 0:01:46]} 26. Qxb7 {[%clk 0:01:52]}  dxc3 {[%clk 0:01:45]} 27. bxc3 {[%clk 0:01:50]}  Qxc3 {[%clk 0:01:45]} 28. Kf1 {[%clk 0:01:44]}  h5 {[%clk 0:01:32]} 29. Qb3 {[%clk 0:01:40]}  Qf6 {[%clk 0:01:30]} 30. Qd5 {[%clk 0:01:30]}  h4 {[%clk 0:01:30]} 31. Be4 {[%clk 0:01:23]}  Ne5 {[%clk 0:01:29]} 32. Nf3 {[%clk 0:01:15]}  Nxf3 {[%clk 0:01:21]} 33. Bxf3 {[%clk 0:01:16]}  h3 {[%clk 0:01:21]} 34. Kg1 {[%clk 0:01:16]}  g5 {[%clk 0:01:03]} 35. Kh2 {[%clk 0:01:13]}  g4 {[%clk 0:00:29]} 36. Bxg4 {[%clk 0:01:12]}  Qxf2+ {[%clk 0:00:30]} 37. Kxh3 {[%clk 0:01:12]}  Qe3+ {[%clk 0:00:27]} 38. Bf3 {[%clk 0:01:10]}  f6 {[%clk 0:00:23]} 39. Kg3 {[%clk 0:01:05]}  Kh6 {[%clk 0:00:22]} 40. Qh5+ {[%clk 0:01:00]}  Kg7 {[%clk 0:00:22]} 41. Qg4+ {[%clk 0:00:59]}  Kf7 {[%clk 0:00:22]} 42. Qh5+ {[%clk 0:00:55]}  Kg7 {[%clk 0:00:22]} 43. Qd5 {[%clk 0:00:48]}  Qg1+ {[%clk 0:00:21]} 44. Kf4 {[%clk 0:00:48]}  Qc1+ {[%clk 0:00:19]} 45. Kf5 {[%clk 0:00:47]}  Qb1+ {[%clk 0:00:14]} 46. Be4 {[%clk 0:00:46]}  Qf1+ {[%clk 0:00:14]} 47. Ke6 {[%clk 0:00:46]}  Qa6+ {[%clk 0:00:12]} 48. Qc6 {[%clk 0:00:45]}  Qxa2+ {[%clk 0:00:12]} 49. Bd5 {[%clk 0:00:45]}  Qe2+ {[%clk 0:00:12]} 50. Be4 {[%clk 0:00:45]}  Qa2+ {[%clk 0:00:12]} 51. Ke7 {[%clk 0:00:44]}  Qa3+ {[%clk 0:00:12]} 52. Kd8 {[%clk 0:00:44]}  Qf8+ {[%clk 0:00:12]} 53. Kc7 {[%clk 0:00:44]}  Qe7+ {[%clk 0:00:12]} 54. Kb8 {[%clk 0:00:43]}  Qe5+ {[%clk 0:00:11]} 55. Kxa7 {[%clk 0:00:42]}  Qa5+ {[%clk 0:00:11]} 56. Kb7 {[%clk 0:00:42]}  Qb4+ {[%clk 0:00:11]} 57. Kc7 {[%clk 0:00:41]}  Qe7+ {[%clk 0:00:09]} 58. Kc8 {[%clk 0:00:39]}  Qf8+ {[%clk 0:00:08]} 59. Kd7 {[%clk 0:00:39]}  Qf7+ {[%clk 0:00:09]} 60. Kd6 {[%clk 0:00:39]}  Qf8+ {[%clk 0:00:09]} 61. Ke6 {[%clk 0:00:40]}  Qf7+ {[%clk 0:00:09]} 62. Kf5 {[%clk 0:00:39]}  Qg6+ {[%clk 0:00:09]} 63. Kf4 {[%clk 0:00:39]}  Qh6+ {[%clk 0:00:09]} 64. Kf3 {[%clk 0:00:38]}  Qh3+ {[%clk 0:00:09]} 65. Ke2 {[%clk 0:00:37]}  Qh2+ {[%clk 0:00:09]} 66. Ke3 {[%clk 0:00:35]}  Qg3+ {[%clk 0:00:09]} 67. Bf3 {[%clk 0:00:35]}  Qe5+ {[%clk 0:00:08]} 68. Kd3 {[%clk 0:00:34]}  Qf5+ {[%clk 0:00:09]} 69. Qe4 {[%clk 0:00:34]}  Qxe4+ {[%clk 0:00:09]} 70. Bxe4 {[%clk 0:00:35]}  f5 {[%clk 0:00:10]} 71. Bxf5 {[%clk 0:00:35]} 1/2-1/2


[Site "https://www.chess.com"]

[Event "Titled Tuesday Blitz August 1 Early 2023"]
[White "Ingebretsen, Jens E"]
[Black "Joshi, Pankaj"]
[WhiteFideId "1522965"]
[BlackFideId "5006210"]
[WhiteElo "2574"]
[BlackElo "2259"]
[Result "1-0"]
[Round "1"]
[TimeControl "180+1"]
[Date "2023.08.01"]
[WhiteClock "0:01:00"]
[BlackClock "0:00:09"]
[Board "196"]

1. d4 {[%clk 0:02:59]}  Nf6 {[%clk 0:02:58]} 2. c4 {[%clk 0:02:59]}  g6 {[%clk 0:02:58]} 3. Nc3 {[%clk 0:02:59]}  Bg7 {[%clk 0:02:58]} 4. e4 {[%clk 0:03:00]}  d6 {[%clk 0:02:59]} 5. Be2 {[%clk 0:02:59]}  O-O {[%clk 0:02:59]} 6. Be3 {[%clk 0:03:00]}  c5 {[%clk 0:02:59]} 7. d5 {[%clk 0:03:00]}  e6 {[%clk 0:02:58]} 8. Nf3 {[%clk 0:03:00]}  exd5 {[%clk 0:02:59]} 9. exd5 {[%clk 0:03:00]}  Ng4 {[%clk 0:02:55]} 10. Bf4 {[%clk 0:02:57]}  Re8 {[%clk 0:02:48]} 11. O-O {[%clk 0:02:56]}  a6 {[%clk 0:02:48]} 12. Re1 {[%clk 0:02:47]}  Ne5 {[%clk 0:02:45]} 13. Nxe5 {[%clk 0:02:44]}  Bxe5 {[%clk 0:02:39]} 14. Bxe5 {[%clk 0:02:43]}  Rxe5 {[%clk 0:02:39]} 15. Bd3 {[%clk 0:02:37]}  Nd7 {[%clk 0:02:39]} 16. Ne4 {[%clk 0:02:34]}  Nf6 {[%clk 0:02:35]} 17. Nxf6+ {[%clk 0:02:22]}  Qxf6 {[%clk 0:02:36]} 18. Rxe5 {[%clk 0:02:22]}  Qxe5 {[%clk 0:02:34]} 19. Qd2 {[%clk 0:02:22]}  Bf5 {[%clk 0:02:16]} 20. Bxf5 {[%clk 0:02:21]}  Qxf5 {[%clk 0:02:17]} 21. Re1 {[%clk 0:02:21]}  Qf6 {[%clk 0:02:10]} 22. Qc3 {[%clk 0:02:17]}  Qxc3 {[%clk 0:02:04]} 23. bxc3 {[%clk 0:02:18]}  Kf8 {[%clk 0:01:59]} 24. Rb1 {[%clk 0:02:14]}  b5 {[%clk 0:01:59]} 25. f3 {[%clk 0:01:58]}  Ke7 {[%clk 0:01:57]} 26. Kf2 {[%clk 0:01:56]}  bxc4 {[%clk 0:01:56]} 27. Rb7+ {[%clk 0:01:55]}  Kf6 {[%clk 0:01:55]} 28. f4 {[%clk 0:01:55]}  h5 {[%clk 0:01:39]} 29. Rd7 {[%clk 0:01:51]}  Rb8 {[%clk 0:01:33]} 30. Rxd6+ {[%clk 0:01:51]}  Ke7 {[%clk 0:01:33]} 31. Rxa6 {[%clk 0:01:50]}  Rb2+ {[%clk 0:01:33]} 32. Kf3 {[%clk 0:01:49]}  Rc2 {[%clk 0:01:32]} 33. f5 {[%clk 0:01:42]}  Rxc3+ {[%clk 0:01:31]} 34. Ke4 {[%clk 0:01:42]}  gxf5+ {[%clk 0:01:26]} 35. Kxf5 {[%clk 0:01:40]}  Rd3 {[%clk 0:01:26]} 36. Ke5 {[%clk 0:01:39]}  c3 {[%clk 0:01:23]} 37. Ra7+ {[%clk 0:01:40]}  Ke8 {[%clk 0:01:21]} 38. Rc7 {[%clk 0:01:30]}  Rd2 {[%clk 0:00:17]} 39. Kd6 {[%clk 0:01:14]}  f5 {[%clk 0:00:16]} 40. Rc8+ {[%clk 0:01:11]}  Kf7 {[%clk 0:00:16]} 41. Rxc5 {[%clk 0:01:12]}  c2 {[%clk 0:00:15]} 42. g3 {[%clk 0:01:04]}  h4 {[%clk 0:00:15]} 43. a4 {[%clk 0:01:01]}  hxg3 {[%clk 0:00:13]} 44. hxg3 {[%clk 0:01:02]}  Kf6 {[%clk 0:00:12]} 45. a5 {[%clk 0:01:01]}  Kg5 {[%clk 0:00:11]} 46. a6 {[%clk 0:01:00]}  c1=Q {[%clk 0:00:11]} 47. Rxc1 {[%clk 0:00:59]}  Ra2 {[%clk 0:00:11]} 48. Rc6 {[%clk 0:00:58]}  Kg4 {[%clk 0:00:12]} 49. Ke5 {[%clk 0:00:59]}  Re2+ {[%clk 0:00:11]} 50. Kf6 {[%clk 0:01:00]}  Ra2 {[%clk 0:00:12]} 51. d6 {[%clk 0:00:59]}  Kxg3 {[%clk 0:00:09]} 52. Kxf5 {[%clk 0:01:00]} 1-0


[Site "https://www.chess.com"]